{"text_format":"3","workbook":"xlsx","n_sheets":1,"sheets":["Отчет за печалбите и загубите"],"not_rendered":{"defined_names":2},"read":"whole","date_system":"1900"}

{"sheet":"Отчет за печалбите и загубите","index":0,"n_rows":60,"n_cols":10,"rows_kept":60,"merged":[[9,1,9,9],[16,1,16,9],[24,1,24,9],[38,1,38,9],[43,1,43,9],[56,1,56,9]]}
[null,"Печалба и загуба Отчет"]
[]
[{"$nulls":3},"ПРЕДИШЕН ПЕРИОД","БЮДЖЕТ ","ТЕКУЩ ПЕРИОД ",null,"ТЕКУЩ ПЕРИОД КАТО % ОТ ПРОДАЖБИТЕ ","% ПРОМЯНА СПРЯМО ПРЕДИШЕН ПЕРИОД ","% ПРОМЯНА СПРЯМО БЮДЖЕТА "]
[null,"Приходи от продажбите"]
[null,"Продукт/услуга 1",null,40,50,45,null,{"$f":"IFERROR(Приходиотпродажби[[#This Row],[Текущ период]]/SUBTOTAL(109,Приходиотпродажби[Текущ период]),0)","v":{"v":1,"d":"100.0%"}},{"$f":"IFERROR(Приходиотпродажби[[#This Row],[Текущ период]]/Приходиотпродажби[[#This Row],[Предишен период]]-1,0)","v":{"v":0.125,"d":"12.5%"}},{"$f":"IFERROR(Приходиотпродажби[[#This Row],[Текущ период]]/Приходиотпродажби[[#This Row],[Бюджет]]-1,0)","v":{"v":-0.09999999999999998,"d":"-10.0%"}}]
[null,"Продукт/услуга 2",{"$nulls":5},{"$f":"IFERROR(Приходиотпродажби[[#This Row],[Текущ период]]/SUBTOTAL(109,Приходиотпродажби[Текущ период]),0)","v":0},{"$f":"IFERROR(Приходиотпродажби[[#This Row],[Текущ период]]/Приходиотпродажби[[#This Row],[Предишен период]]-1,0)","v":0},{"$f":"IFERROR(Приходиотпродажби[[#This Row],[Текущ период]]/Приходиотпродажби[[#This Row],[Бюджет]]-1,0)","v":0}]
[null,"Продукт/услуга 3",{"$nulls":5},{"$f":"IFERROR(Приходиотпродажби[[#This Row],[Текущ период]]/SUBTOTAL(109,Приходиотпродажби[Текущ период]),0)","v":0},{"$f":"IFERROR(Приходиотпродажби[[#This Row],[Текущ период]]/Приходиотпродажби[[#This Row],[Предишен период]]-1,0)","v":0},{"$f":"IFERROR(Приходиотпродажби[[#This Row],[Текущ период]]/Приходиотпродажби[[#This Row],[Бюджет]]-1,0)","v":0}]
[null,"Продукт/услуга 4",{"$nulls":5},{"$f":"IFERROR(Приходиотпродажби[[#This Row],[Текущ период]]/SUBTOTAL(109,Приходиотпродажби[Текущ период]),0)","v":0},{"$f":"IFERROR(Приходиотпродажби[[#This Row],[Текущ период]]/Приходиотпродажби[[#This Row],[Предишен период]]-1,0)","v":0},{"$f":"IFERROR(Приходиотпродажби[[#This Row],[Текущ период]]/Приходиотпродажби[[#This Row],[Бюджет]]-1,0)","v":0}]
[null,"Общо",null,{"$f":"SUBTOTAL(109,Приходиотпродажби[Предишен период])","v":40},{"$f":"SUBTOTAL(109,Приходиотпродажби[Бюджет])","v":50},{"$f":"SUBTOTAL(109,Приходиотпродажби[Текущ период])","v":45},null,{"$f":"IFERROR(Приходиотпродажби[[#Totals],[Текущ период]]/Приходиотпродажби[[#Totals],[Текущ период]],0)","v":{"v":1,"d":"100.0%"}},{"$f":"IFERROR(Приходиотпродажби[[#Totals],[Текущ период]]/Приходиотпродажби[[#Totals],[Предишен период]]-1,0)","v":{"v":0.125,"d":"12.5%"}},{"$f":"IFERROR(Приходиотпродажби[[#Totals],[Текущ период]]/Приходиотпродажби[[#Totals],[Бюджет]]-1,0)","v":{"v":-0.09999999999999998,"d":"-10.0%"}}]
[]
[null,"Себестойност на продажбите"]
[null,"Продукт/услуга 1",null,null,2,3,null,{"$f":"IFERROR(Себестойностнапродажбите[[#This Row],[Текущ период]]/SUBTOTAL(109,Приходиотпродажби[Текущ период]),0)","v":{"v":0.06666666666666667,"d":"6.7%"}},{"$f":"IFERROR(Себестойностнапродажбите[[#This Row],[Текущ период]]/Себестойностнапродажбите[[#This Row],[Предишен период]]-1,0)","v":0},{"$f":"IFERROR(Себестойностнапродажбите[[#This Row],[Текущ период]]/Себестойностнапродажбите[[#This Row],[Бюджет]]-1,0)","v":{"v":0.5,"d":"50.0%"}}]
[null,"Продукт/услуга 2",null,null,5,3,null,{"$f":"IFERROR(Себестойностнапродажбите[[#This Row],[Текущ период]]/SUBTOTAL(109,Приходиотпродажби[Текущ период]),0)","v":{"v":0.06666666666666667,"d":"6.7%"}},{"$f":"IFERROR(Себестойностнапродажбите[[#This Row],[Текущ период]]/Себестойностнапродажбите[[#This Row],[Предишен период]]-1,0)","v":0},{"$f":"IFERROR(Себестойностнапродажбите[[#This Row],[Текущ период]]/Себестойностнапродажбите[[#This Row],[Бюджет]]-1,0)","v":{"v":-0.4,"d":"-40.0%"}}]
[null,"Продукт/услуга 3",{"$nulls":3},1,null,{"$f":"IFERROR(Себестойностнапродажбите[[#This Row],[Текущ период]]/SUBTOTAL(109,Приходиотпродажби[Текущ период]),0)","v":{"v":0.022222222222222223,"d":"2.2%"}},{"$f":"IFERROR(Себестойностнапродажбите[[#This Row],[Текущ период]]/Себестойностнапродажбите[[#This Row],[Предишен период]]-1,0)","v":0},{"$f":"IFERROR(Себестойностнапродажбите[[#This Row],[Текущ период]]/Себестойностнапродажбите[[#This Row],[Бюджет]]-1,0)","v":0}]
[null,"Продукт/услуга 4",{"$nulls":5},{"$f":"IFERROR(Себестойностнапродажбите[[#This Row],[Текущ период]]/SUBTOTAL(109,Приходиотпродажби[Текущ период]),0)","v":0},{"$f":"IFERROR(Себестойностнапродажбите[[#This Row],[Текущ период]]/Себестойностнапродажбите[[#This Row],[Предишен период]]-1,0)","v":0},{"$f":"IFERROR(Себестойностнапродажбите[[#This Row],[Текущ период]]/Себестойностнапродажбите[[#This Row],[Бюджет]]-1,0)","v":0}]
[null,"Общо",null,{"$f":"SUBTOTAL(109,Себестойностнапродажбите[Предишен период])","v":0},{"$f":"SUBTOTAL(109,Себестойностнапродажбите[Бюджет])","v":7},{"$f":"SUBTOTAL(109,Себестойностнапродажбите[Текущ период])","v":7},null,{"$f":"IFERROR(Себестойностнапродажбите[[#Totals],[Текущ период]]/SUBTOTAL(109,Приходиотпродажби[Текущ период]),0)","v":{"v":0.15555555555555556,"d":"15.6%"}},{"$f":"IFERROR(Себестойностнапродажбите[[#Totals],[Текущ период]]/Себестойностнапродажбите[[#Totals],[Предишен период]]-1,0)","v":0},{"$f":"IFERROR(Себестойностнапродажбите[[#Totals],[Текущ период]]/Себестойностнапродажбите[[#Totals],[Бюджет]]-1,0)","v":0}]
[]
[null,"Брутна печалба",null,{"$f":"SUM(Приходиотпродажби[Предишен период])-SUM(Себестойностнапродажбите[Предишен период])","v":40},{"$f":"SUM(Приходиотпродажби[Бюджет])-SUM(Себестойностнапродажбите[Бюджет])","v":43},{"$f":"SUM(Приходиотпродажби[Текущ период])-SUM(Себестойностнапродажбите[Текущ период])","v":38},null,{"$f":"IFERROR(F18/SUBTOTAL(109,Приходиотпродажби[Текущ период]),0)","v":{"v":0.8444444444444444,"d":"84.4%"}},{"$f":"IFERROR(F18/D18-1,0)","v":{"v":-0.050000000000000044,"d":"-5.0%"}},{"$f":"IFERROR(F18/E18-1,0)","v":{"v":-0.11627906976744184,"d":"-11.6%"}}]
[]
[null,"Текущ разход: Продажби и маркетинг"]
[null,"Реклама",null,null,22,19,null,{"$f":"IFERROR(Продажбиимаркетинг[[#This Row],[Текущ период]]/SUBTOTAL(109,Приходиотпродажби[Текущ период]),0)","v":{"v":0.4222222222222222,"d":"42.2%"}},{"$f":"IFERROR(Продажбиимаркетинг[[#This Row],[Текущ период]]/Продажбиимаркетинг[[#This Row],[Предишен период]]-1,0)","v":0},{"$f":"IFERROR(Продажбиимаркетинг[[#This Row],[Текущ период]]/Продажбиимаркетинг[[#This Row],[Бюджет]]-1,0)","v":{"v":-0.13636363636363635,"d":"-13.6%"}}]
[null,"Директен маркетинг",{"$nulls":5},{"$f":"IFERROR(Продажбиимаркетинг[[#This Row],[Текущ период]]/SUBTOTAL(109,Приходиотпродажби[Текущ период]),0)","v":0},{"$f":"IFERROR(Продажбиимаркетинг[[#This Row],[Текущ период]]/Продажбиимаркетинг[[#This Row],[Предишен период]]-1,0)","v":0},{"$f":"IFERROR(Продажбиимаркетинг[[#This Row],[Текущ период]]/Продажбиимаркетинг[[#This Row],[Бюджет]]-1,0)","v":0}]
[null,"Други разходи (определете)",{"$nulls":5},{"$f":"IFERROR(Продажбиимаркетинг[[#This Row],[Текущ период]]/SUBTOTAL(109,Приходиотпродажби[Текущ период]),0)","v":0},{"$f":"IFERROR(Продажбиимаркетинг[[#This Row],[Текущ период]]/Продажбиимаркетинг[[#This Row],[Предишен период]]-1,0)","v":0},{"$f":"IFERROR(Продажбиимаркетинг[[#This Row],[Текущ период]]/Продажбиимаркетинг[[#This Row],[Бюджет]]-1,0)","v":0}]
[null,"Общо",null,{"$f":"SUBTOTAL(109,Продажбиимаркетинг[Предишен период])","v":0},{"$f":"SUBTOTAL(109,Продажбиимаркетинг[Бюджет])","v":22},{"$f":"SUBTOTAL(109,Продажбиимаркетинг[Текущ период])","v":19},null,{"$f":"IFERROR(Продажбиимаркетинг[[#Totals],[Текущ период]]/SUBTOTAL(109,Приходиотпродажби[Текущ период]),0)","v":{"v":0.4222222222222222,"d":"42.2%"}},{"$f":"IFERROR(Продажбиимаркетинг[[#Totals],[Текущ период]]/Продажбиимаркетинг[[#Totals],[Предишен период]]-1,0)","v":0},{"$f":"IFERROR(Продажбиимаркетинг[[#Totals],[Текущ период]]/Продажбиимаркетинг[[#Totals],[Бюджет]]-1,0)","v":{"v":-0.13636363636363635,"d":"-13.6%"}}]
[]
[null,"Текущ разход: Общи и административни"]
[null,"Заплати",null,null,56,51,null,{"$f":"IFERROR(Общииадминистративни[[#This Row],[Текущ период]]/SUBTOTAL(109,Приходиотпродажби[Текущ период]),0)","v":{"v":1.1333333333333333,"d":"113.3%"}},{"$f":"IFERROR(Общииадминистративни[[#This Row],[Текущ период]]/Общииадминистративни[[#This Row],[Предишен период]]-1,0)","v":0},{"$f":"IFERROR(Общииадминистративни[[#This Row],[Текущ период]]/Общииадминистративни[[#This Row],[Бюджет]]-1,0)","v":{"v":-0.0892857142857143,"d":"-8.9%"}}]
[null,"Външни услуги",{"$nulls":5},{"$f":"IFERROR(Общииадминистративни[[#This Row],[Текущ период]]/SUBTOTAL(109,Приходиотпродажби[Текущ период]),0)","v":0},{"$f":"IFERROR(Общииадминистративни[[#This Row],[Текущ период]]/Общииадминистративни[[#This Row],[Предишен период]]-1,0)","v":0},{"$f":"IFERROR(Общииадминистративни[[#This Row],[Текущ период]]/Общииадминистративни[[#This Row],[Бюджет]]-1,0)","v":0}]
[null,"Консумативи",{"$nulls":5},{"$f":"IFERROR(Общииадминистративни[[#This Row],[Текущ период]]/SUBTOTAL(109,Приходиотпродажби[Текущ период]),0)","v":0},{"$f":"IFERROR(Общииадминистративни[[#This Row],[Текущ период]]/Общииадминистративни[[#This Row],[Предишен период]]-1,0)","v":0},{"$f":"IFERROR(Общииадминистративни[[#This Row],[Текущ период]]/Общииадминистративни[[#This Row],[Бюджет]]-1,0)","v":0}]
[null,"Храна и забавления",{"$nulls":5},{"$f":"IFERROR(Общииадминистративни[[#This Row],[Текущ период]]/SUBTOTAL(109,Приходиотпродажби[Текущ период]),0)","v":0},{"$f":"IFERROR(Общииадминистративни[[#This Row],[Текущ период]]/Общииадминистративни[[#This Row],[Предишен период]]-1,0)","v":0},{"$f":"IFERROR(Общииадминистративни[[#This Row],[Текущ период]]/Общииадминистративни[[#This Row],[Бюджет]]-1,0)","v":0}]
[null,"Наем",{"$nulls":5},{"$f":"IFERROR(Общииадминистративни[[#This Row],[Текущ период]]/SUBTOTAL(109,Приходиотпродажби[Текущ период]),0)","v":0},{"$f":"IFERROR(Общииадминистративни[[#This Row],[Текущ период]]/Общииадминистративни[[#This Row],[Предишен период]]-1,0)","v":0},{"$f":"IFERROR(Общииадминистративни[[#This Row],[Текущ период]]/Общииадминистративни[[#This Row],[Бюджет]]-1,0)","v":0}]
[null,"Телефон",{"$nulls":5},{"$f":"IFERROR(Общииадминистративни[[#This Row],[Текущ период]]/SUBTOTAL(109,Приходиотпродажби[Текущ период]),0)","v":0},{"$f":"IFERROR(Общииадминистративни[[#This Row],[Текущ период]]/Общииадминистративни[[#This Row],[Предишен период]]-1,0)","v":0},{"$f":"IFERROR(Общииадминистративни[[#This Row],[Текущ период]]/Общииадминистративни[[#This Row],[Бюджет]]-1,0)","v":0}]
[null,"Комунални услуги",{"$nulls":5},{"$f":"IFERROR(Общииадминистративни[[#This Row],[Текущ период]]/SUBTOTAL(109,Приходиотпродажби[Текущ период]),0)","v":0},{"$f":"IFERROR(Общииадминистративни[[#This Row],[Текущ период]]/Общииадминистративни[[#This Row],[Предишен период]]-1,0)","v":0},{"$f":"IFERROR(Общииадминистративни[[#This Row],[Текущ период]]/Общииадминистративни[[#This Row],[Бюджет]]-1,0)","v":0}]
[null,"Амортизация",{"$nulls":5},{"$f":"IFERROR(Общииадминистративни[[#This Row],[Текущ период]]/SUBTOTAL(109,Приходиотпродажби[Текущ период]),0)","v":0},{"$f":"IFERROR(Общииадминистративни[[#This Row],[Текущ период]]/Общииадминистративни[[#This Row],[Предишен период]]-1,0)","v":0},{"$f":"IFERROR(Общииадминистративни[[#This Row],[Текущ период]]/Общииадминистративни[[#This Row],[Бюджет]]-1,0)","v":0}]
[null,"Застраховка",{"$nulls":5},{"$f":"IFERROR(Общииадминистративни[[#This Row],[Текущ период]]/SUBTOTAL(109,Приходиотпродажби[Текущ период]),0)","v":0},{"$f":"IFERROR(Общииадминистративни[[#This Row],[Текущ период]]/Общииадминистративни[[#This Row],[Предишен период]]-1,0)","v":0},{"$f":"IFERROR(Общииадминистративни[[#This Row],[Текущ период]]/Общииадминистративни[[#This Row],[Бюджет]]-1,0)","v":0}]
[null,"Ремонт и поддръжка",{"$nulls":5},{"$f":"IFERROR(Общииадминистративни[[#This Row],[Текущ период]]/SUBTOTAL(109,Приходиотпродажби[Текущ период]),0)","v":0},{"$f":"IFERROR(Общииадминистративни[[#This Row],[Текущ период]]/Общииадминистративни[[#This Row],[Предишен период]]-1,0)","v":0},{"$f":"IFERROR(Общииадминистративни[[#This Row],[Текущ период]]/Общииадминистративни[[#This Row],[Бюджет]]-1,0)","v":0}]
[null,"Други разходи (определете)",{"$nulls":5},{"$f":"IFERROR(Общииадминистративни[[#This Row],[Текущ период]]/SUBTOTAL(109,Приходиотпродажби[Текущ период]),0)","v":0},{"$f":"IFERROR(Общииадминистративни[[#This Row],[Текущ период]]/Общииадминистративни[[#This Row],[Предишен период]]-1,0)","v":0},{"$f":"IFERROR(Общииадминистративни[[#This Row],[Текущ период]]/Общииадминистративни[[#This Row],[Бюджет]]-1,0)","v":0}]
[null,"Общо",null,{"$f":"SUBTOTAL(109,Общииадминистративни[Предишен период])","v":0},{"$f":"SUBTOTAL(109,Общииадминистративни[Бюджет])","v":56},{"$f":"SUBTOTAL(109,Общииадминистративни[Текущ период])","v":51},null,{"$f":"IFERROR(Общииадминистративни[[#Totals],[Текущ период]]/SUBTOTAL(109,Приходиотпродажби[Текущ период]),0)","v":{"v":1.1333333333333333,"d":"113.3%"}},{"$f":"IFERROR(Общииадминистративни[[#Totals],[Текущ период]]/Общииадминистративни[[#Totals],[Предишен период]]-1,0)","v":0},{"$f":"IFERROR(Общииадминистративни[[#Totals],[Текущ период]]/Общииадминистративни[[#Totals],[Бюджет]]-1,0)","v":{"v":-0.0892857142857143,"d":"-8.9%"}}]
[]
[null,"Текущ разход: Други"]
[null,"Друг текущ разход 1",null,null,10,null,null,{"$f":"IFERROR(Другикатегорииоперативниразходи[[#This Row],[Текущ период]]/SUBTOTAL(109,Приходиотпродажби[Текущ период]),0)","v":0},{"$f":"IFERROR(Другикатегорииоперативниразходи[[#This Row],[Текущ период]]/Другикатегорииоперативниразходи[[#This Row],[Предишен период]]-1,0)","v":0},{"$f":"IFERROR(Другикатегорииоперативниразходи[[#This Row],[Текущ период]]/Другикатегорииоперативниразходи[[#This Row],[Бюджет]]-1,0)","v":{"v":-1,"d":"-100.0%"}}]
[null,"Друг текущ разход 2",{"$nulls":5},{"$f":"IFERROR(Другикатегорииоперативниразходи[[#This Row],[Текущ период]]/SUBTOTAL(109,Приходиотпродажби[Текущ период]),0)","v":0},{"$f":"IFERROR(Другикатегорииоперативниразходи[[#This Row],[Текущ период]]/Другикатегорииоперативниразходи[[#This Row],[Предишен период]]-1,0)","v":0},{"$f":"IFERROR(Другикатегорииоперативниразходи[[#This Row],[Текущ период]]/Другикатегорииоперативниразходи[[#This Row],[Бюджет]]-1,0)","v":0}]
[null,"Общо",null,{"$f":"SUBTOTAL(109,Другикатегорииоперативниразходи[Предишен период])","v":0},{"$f":"SUBTOTAL(109,Другикатегорииоперативниразходи[Бюджет])","v":10},{"$f":"SUBTOTAL(109,Другикатегорииоперативниразходи[Текущ период])","v":0},null,{"$f":"IFERROR(Другикатегорииоперативниразходи[[#Totals],[Текущ период]]/SUBTOTAL(109,Приходиотпродажби[Текущ период]),0)","v":0},{"$f":"IFERROR(Другикатегорииоперативниразходи[[#Totals],[Текущ период]]/Другикатегорииоперативниразходи[[#Totals],[Предишен период]]-1,0)","v":0},{"$f":"IFERROR(Другикатегорииоперативниразходи[[#Totals],[Текущ период]]/Другикатегорииоперативниразходи[[#Totals],[Бюджет]]-1,0)","v":{"v":-1,"d":"-100.0%"}}]
[]
[null,"Общо текущи разходи",null,{"$f":"SUM(Продажбиимаркетинг[Предишен период],Общииадминистративни[Предишен период],Другикатегорииоперативниразходи[Предишен период])","v":0},{"$f":"SUM(Продажбиимаркетинг[Бюджет],Общииадминистративни[Бюджет],Другикатегорииоперативниразходи[Бюджет])","v":88},{"$f":"SUM(Продажбиимаркетинг[Текущ период],Общииадминистративни[Текущ период],Другикатегорииоперативниразходи[Текущ период])","v":70},null,{"$f":"IFERROR(F45/SUBTOTAL(109,Приходиотпродажби[Текущ период]),0)","v":{"v":1.5555555555555556,"d":"155.6%"}},{"$f":"IFERROR(F45/D45-1,0)","v":0},{"$f":"IFERROR(F45/E45-1,0)","v":{"v":-0.20454545454545459,"d":"-20.5%"}}]
[]
[null,"Приход от операции",null,{"$f":"D18-D45","v":40},{"$f":"E18-E45","v":-45},{"$f":"F18-F45","v":-32},null,{"$f":"IFERROR(F47/SUBTOTAL(109,Приходиотпродажби[Текущ период]),0)","v":{"v":-0.7111111111111111,"d":"-71.1%"}},{"$f":"IFERROR(IF(D47=F47,0,IF(F47>D47,ABS((F47/D47)-1),IF(AND(F47<D47,D47<0),-((F47/D47)-1),(F47/D47)-1))),0)","v":{"v":-1.8,"d":"-180.0%"}},{"$f":"IFERROR(IF(E47=F47,0,IF(F47>E47,ABS((F47/E47)-1),IF(AND(F47<E47,E47<0),-((F47/E47)-1),(F47/E47)-1))),0)","v":{"v":0.28888888888888886,"d":"28.9%"}}]
[]
[null,"Други приходи",{"$nulls":5},{"$f":"IFERROR(F49/SUBTOTAL(109,Приходиотпродажби[Текущ период]),0)","v":0},{"$f":"IFERROR(F49/D49-1,0)","v":0},{"$f":"IFERROR(F49/E49-1,0)","v":0}]
[]
[null,"Данъци"]
[null,"Данъци върху приходите",null,null,32,30,null,{"$f":"IFERROR(Данъци[[#This Row],[Текущ период]]/SUBTOTAL(109,Приходиотпродажби[Текущ период]),0)","v":{"v":0.6666666666666666,"d":"66.7%"}},{"$f":"IFERROR(Данъци[[#This Row],[Текущ период]]/Данъци[[#This Row],[Предишен период]]-1,0)","v":0},{"$f":"IFERROR(Данъци[[#This Row],[Текущ период]]/Данъци[[#This Row],[Бюджет]]-1,0)","v":{"v":-0.0625,"d":"-6.3%"}}]
[null,"ТРЗ разходи",{"$nulls":5},{"$f":"IFERROR(Данъци[[#This Row],[Текущ период]]/SUBTOTAL(109,Приходиотпродажби[Текущ период]),0)","v":0},{"$f":"IFERROR(Данъци[[#This Row],[Текущ период]]/Данъци[[#This Row],[Предишен период]]-1,0)","v":0},{"$f":"IFERROR(Данъци[[#This Row],[Текущ период]]/Данъци[[#This Row],[Бюджет]]-1,0)","v":0}]
[null,"Данъци върху недвижими имоти",{"$nulls":5},{"$f":"IFERROR(Данъци[[#This Row],[Текущ период]]/SUBTOTAL(109,Приходиотпродажби[Текущ период]),0)","v":0},{"$f":"IFERROR(Данъци[[#This Row],[Текущ период]]/Данъци[[#This Row],[Предишен период]]-1,0)","v":0},{"$f":"IFERROR(Данъци[[#This Row],[Текущ период]]/Данъци[[#This Row],[Бюджет]]-1,0)","v":0}]
[null,"Други данъци (определете)",{"$nulls":5},{"$f":"IFERROR(Данъци[[#This Row],[Текущ период]]/SUBTOTAL(109,Приходиотпродажби[Текущ период]),0)","v":0},{"$f":"IFERROR(Данъци[[#This Row],[Текущ период]]/Данъци[[#This Row],[Предишен период]]-1,0)","v":0},{"$f":"IFERROR(Данъци[[#This Row],[Текущ период]]/Данъци[[#This Row],[Бюджет]]-1,0)","v":0}]
[null,"Общо",null,{"$f":"SUBTOTAL(109,Данъци[Предишен период])","v":0},{"$f":"SUBTOTAL(109,Данъци[Бюджет])","v":32},{"$f":"SUBTOTAL(109,Данъци[Текущ период])","v":30},null,{"$f":"IFERROR(Данъци[[#Totals],[Текущ период]]/SUBTOTAL(109,Приходиотпродажби[Текущ период]),0)","v":{"v":0.6666666666666666,"d":"66.7%"}},{"$f":"IFERROR(Данъци[[#Totals],[Текущ период]]/Данъци[[#Totals],[Предишен период]]-1,0)","v":0},{"$f":"IFERROR(Данъци[[#Totals],[Текущ период]]/Данъци[[#Totals],[Бюджет]]-1,0)","v":{"v":-0.0625,"d":"-6.3%"}}]
[]
[null,"Нетна печалба",null,{"$f":"D47+D49-Данъци[[#Totals],[Предишен период]]","v":40},{"$f":"E47+E49-Данъци[[#Totals],[Предишен период]]","v":-45},{"$f":"F47+F49-Данъци[[#Totals],[Предишен период]]","v":-32},null,{"$f":"IFERROR(F58/SUBTOTAL(109,Приходиотпродажби[Текущ период]),0)","v":{"v":-0.7111111111111111,"d":"-71.1%"}},{"$f":"IFERROR(IF(D58=F58,0,IF(F58>D58,ABS((F58/D58)-1),IF(AND(F58<D58,D58<0),-((F58/D58)-1),(F58/D58)-1))),0)","v":{"v":-1.8,"d":"-180.0%"}},{"$f":"IFERROR(IF(E58=F58,0,IF(F58>E58,ABS((F58/E58)-1),IF(AND(F58<E58,E58<0),-((F58/E58)-1),(F58/E58)-1))),0)","v":{"v":0.28888888888888886,"d":"28.9%"}}]
[null,"Брутен марж",null,{"$f":"D18/SUM(Приходиотпродажби[Предишен период])","v":{"v":1,"d":"100.0%"}},{"$f":"E18/SUM(Приходиотпродажби[Бюджет])","v":{"v":0.86,"d":"86.0%"}},{"$f":"F18/SUM(Приходиотпродажби[Текущ период])","v":{"v":0.8444444444444444,"d":"84.4%"}}]
[null,"Възвръщаемост от продажби",null,{"$f":"D58/SUM(Приходиотпродажби[Предишен период])","v":{"v":1,"d":"100.0%"}},{"$f":"E58/SUM(Приходиотпродажби[Бюджет])","v":{"v":-0.9,"d":"-90.0%"}},{"$f":"F58/SUM(Приходиотпродажби[Текущ период])","v":{"v":-0.7111111111111111,"d":"-71.1%"}}]